{"text_format":"1","workbook":"xlsx","n_sheets":8,"sheets":["INSTRUCC","Ficha","MIR","SinMatriz","Avances","AvancesAnual","Base","Listas"],"not_rendered":{"charts":0,"images":23,"macros":1,"external_links":2,"defined_names":20,"comments":1,"pivot_tables":0},"unopened":[],"bounds":{"document_bytes":16777216,"sheet_cells":100000,"rows_first":2000,"rows_last":500,"rows_between":2000,"halvings":0,"cell_chars":16384,"cell_head_chars":4096},"cells_cut":0,"cells_raw":0,"read":"whole","date_system":"1900"}

{"sheet":"INSTRUCC","index":0,"n_rows":12,"n_cols":1,"rows_kept":12,"cut":false,"hidden":false,"merged":[]}
[]
["LEA ESTO ANTES DE INICIAR"]
[]
["A continuación en la hoja \"MIR\" registre los programas que deban tener matiz de Indicadores para resultados. Esta hoja esta dispuesta con la estructura de una matriz de indicadores de resultados básica, que deberá llenar con los datos de sus programas y sus indicadores. El formulario solo incluye un nivel de componente y dos de actividades por programa, pero es posible que necesite más, para ello agregue componentes o actividades con los botones de comando que están dispuestos en la parte superior derecha del área de trabajo. Este es solo un formulario que le ayudará a registrar correctamente sus programas uno a uno. Después de llenar un formulario asegúrese de revisarlo en su totalidad y luego guárdelo con el botón \"Guardar programa\"  eso enviará la información a la hoja llamada \"base\" donde adquiere propiedades de base de datos y no podrá modificarlo. Una vez guardado estará seguro ahí, continúe en la hoja MIR pulsando el botón de comando \"Agregar nuevo programa\" lo que limpiará el formulario dejándolo listo para registrar otro programa."]
["Hay guías contextuales que parecen al colocarse sobre el título de la columna. Si tiene dudas sobre cómo llenar el formulario por favor ingrese a la página de la ASEJ, (www.asej.gob.mx) y ahí ingrese a Material de Consulta/ Cursos de capacitación 2018/  Presupuesto Municipal 2019, ahí podrá descargar el manual que explica con detalle cómo llenar una matriz de indicadores para resultados."]
["Para los programas que no requieren MIR utilice la hoja \"Sin Matriz\", en ella únicamente se registra un programa por línea, llenando las columnas conforme lo indicado. En esta hoja no hay un proceso de guardado como en la hoja MIR simplemente se llenan las columnas y se guarda con el botón de \"guardar\" de Excel."]
["En este archivo se encuentra la pestaña “Avances” que es donde registrará la información de avances semestrales con lo que cumplirá con el informe de desempeño de la gestión.  Este es el medio para hacerlo y no existe otro método para ello."]
["Oprima el botón “1” de la derecha. Esto desplegará la información proporcionada en la integración del presupuesto y de la que deberá registrar los avances. Una vez que registre los avances, puede imprimir el formulario lleno, sea en papel o como archivo PDF, para su control interno."]
["No olvide oprimir el botón “3” que guarda su información. Al hacerlo se borrará toda la información del formulario y estará listo para registrar avances de los demás programas que haya registrado en la integración del  presupuesto anual. No se preocupe, su información ha sido correctamente guardada en la base de datos, pero no puede ser recuperada ni modificada,  por lo que se sugiere que la revise bien antes de guardarla. La información de los avances de los programas se da por entregada con la hoja “Base” en las condiciones, formato y características con las que posee al momento de entregar este archivo."]
["Si su archivo en la pestaña de “AVANCES” no despliega ningún programa para reportar avances, se debe a que registró sus programas en la Pestaña “SINMIR”, ahí mismo encontrará nuevas columnas en donde podrá registrar sus avances. Si no hay programas para reportar avances ni en la pestaña “SINMIR” ni en “AVANCES” es porque aún no ha registrado programas en el sistema de evaluación de desempeño. Deberá hacerlo en las pestañas “MIR” y “SINMIR” y después continuar con la pestaña “AVANCES” para registrar sus avances."]
["La programación de este sistema no permite el ingreso de caracteres como ', ´, \" o @, por favor no los utilice al llenar sus programas o avances. Por favor no intente desbloquear las celdas protegidas, ni alterar o modificar la programación o el diseño de este archivo."]
["Atte. Dirección de Auditoría de Desempeño."]

{"sheet":"Ficha","index":1,"n_rows":64,"n_cols":8,"rows_kept":64,"cut":false,"hidden":false,"merged":[]}
[]
[]
[]
[]
[null,null,null,"Información para la evaluación del desempeño"]
[]
[null,null,null,"Nombre del ente fiscalizable:"]
[null,null,null,"MUNICIPIO DE OCOTLAN, JALISCO"]
[]
[null,null,null,"Registre por favor los programas que fueron capturados en la pestaña MIR",null,null,null,"Registre por favor los programas que fueron capturados en la pestaña SinMatriz"]
[null,null,1,"Desarrollo de mantenimiento de luminarias",null,null,1]
[null,null,2,null,null,null,2]
[null,null,3,null,null,null,3]
[null,null,4,null,null,null,4]
[null,null,5,null,null,null,5]
[null,null,6,null,null,null,6]
[null,null,7,null,null,null,7]
[null,null,8,null,null,null,8]
[null,null,9,null,null,null,9]
[null,null,10,null,null,null,10]
[null,null,11,null,null,null,11]
[null,null,12,null,null,null,12]
[null,null,13,null,null,null,13]
[null,null,14,null,null,null,14]
[null,null,15,null,null,null,15]
[null,null,16,null,null,null,16]
[null,null,17,null,null,null,17]
[null,null,18,null,null,null,18]
[null,null,19,null,null,null,19]
[null,null,20,null,null,null,20]
[null,null,21,null,null,null,21]
[null,null,22,null,null,null,22]
[null,null,23,null,null,null,23]
[null,null,24,null,null,null,24]
[null,null,25,null,null,null,25]
[null,null,26,null,null,null,26]
[null,null,27,null,null,null,27]
[null,null,28,null,null,null,28]
[null,null,29,null,null,null,29]
[null,null,30,null,null,null,30]
[null,null,31,null,null,null,31]
[null,null,32,null,null,null,32]
[null,null,33,null,null,null,33]
[null,null,34,null,null,null,34]
[null,null,35,null,null,null,35]
[null,null,36,null,null,null,36]
[null,null,37,null,null,null,37]
[null,null,38,null,null,null,38]
[null,null,39,null,null,null,39]
[null,null,40,null,null,null,40]
[null,null,41,null,null,null,41]
[null,null,42,null,null,null,42]
[null,null,43,null,null,null,43]
[null,null,44,null,null,null,44]
[null,null,45,null,null,null,45]
[null,null,46,null,null,null,46]
[null,null,47,null,null,null,47]
[null,null,48,null,null,null,48]
[null,null,49,null,null,null,49]
[null,null,50,null,null,null,50]
[]
[null,null,null,"Número de programas con MIR (programas que fueron capturados en la pestaña MIR)",null,31,null,"Número de programas sin matriz (programas que fueron capturados en la pestaña SinMatriz)"]
[]
[null,null,null,"TOTAL",null,{"$f":"F62+J62","v":31}]

{"sheet":"MIR","index":2,"n_rows":23,"n_cols":26,"rows_kept":23,"cut":false,"hidden":false,"merged":[[16,4,16,16],[16,17,16,25],[8,2,8,3],[9,1,10,1],[9,2,9,3],[10,2,10,3],[11,1,12,1],[11,2,11,3],[12,2,12,3],[14,11,14,20],[11,11,11,20],[12,11,12,20],[13,11,13,20],[13,1,14,1],[13,2,13,3],[14,2,14,3],[12,4,12,9],[7,2,7,3],[2,2,2,3],[3,2,3,3],[4,2,4,3],[5,2,5,3],[6,2,6,3]]}
[]
[null,null,null,null,null,null,null,null,null,null,null,"  MATRIZ DE INDICADORES PARA RESULTADOS POR PROGRAMA "]
[null,null,"Nombre del ente fiscalizable",null,"Municipio de Ocotlán, Jalisco",null,null,null,null,null,"."]
[null,null,"Denominación del Programa",null,"Combatiendo la Pobreza en Ocotlan",null,null,null,null,null,"."]
[null,null,"Categoría programática",null,"Planeación, Seguimiento y Evaluación de políticas Públicas",null,null,null,null,null,"."]
[null,null,"Unidad Responsable/OPD",null,"Dirección de Combate a la Desigualdad",null,null,null,null,null,"."]
[null,null,"Finalidad",null,"Desarrollo Social",null,null,null,null,null,"."]
[null,null,"Función",null,"Vivienda y servicios a la comunidad",null,null,null,null,null,"."]
[null,null,"Sub-función",null,"Desarrollo Comunitario",null,null,null,null,null,"."]
[null,"Plan Nacional de Desarrollo","Alineación con objetivos superiores del PND",null,"Garantizar una vida sana y promover el bienestar para todos en todas las edades",null,null,null,null,null,"."]
[null,null,"Alineación con objetivos secundarios del PND",null,"Grupos Vulnerables",null,null,null,null,null,"."]
[null,"Plan Estatal de Desarrollo","Alineación con objetivos superiores del PED",null,"Jalisco crece para todas y todos",null,null,null,null,null,".","Llene la sección de la izquierda primero con los datos solicitados. \nLlene la sección de abajo con los datos solicitados."]
[null,null,"Alineación con objetivos secundarios del PED",null,"Menos desigualdad más comunidad.",null,null,null,null,null,".","Si es necesario agrege componentes y actividades con los botones de la derecha.\nUna vez que termine de escribir los datos del programa Pulse GUARDAR PROGRAMA con el botón del panel de la derecha. Despues de esto no es posible hacer cambios."]
[null,"Plan Municipal de Desarrollo","Alineación con objetivos superiores del PMD",null,"Fortalecimiento Humano",null,null,null,null,null,".","Si requiere imprimir la información de este progarma pulse IMPRIMIR en el botón del panel de la derecha. \nSolo es posible imprimir un programa a la vez, NO INTENTE AGREGAR OTRO PROGARAMA."]
[null,null,"Alineación con objetivos secundarios del PMD",null,"Grupos Vulnerables",null,null,null,null,null,".","NO PUSE EL BOTON DE AGREGAR OTRO PROGRAMA ANTES DE GUARDAR O IMPRIMIR.\nUna vez que haya GUARDADO e IMPRESO pulse AGREGAR NUEVO PROGRAMA, los datos de la plantilla se borrarán, no se precupe los datos de su programa están salvados"]
[]
[null,null,null,null,"I N D I C A D O R E S",null,null,null,null,null,null,null,null,null,null,null,null,"P R E S U P U E S T O"]
[null,null,null,null,"Resumen Narrativo","Nombre del indicador","Definición","Dimensión","Tipo","Método de cálculo","Valor programado 1 (Numerador)","Valor programado 2 (Denominador)","Frecuencia de medición","Unidad de medida","Metas","Medios de verificación","Supuestos","Capítulo 1000","Capítulo 2000","Capítulo 3000","Capítulo 4000","Capítulo 5000","Capítulo 6000","Capítulo 7000","Capítulo 8000","Capítulo 9000"]
[null,null,"Fin",null,"Contribuir a mejorar las condiciones de vulnerabilidad entre la sociedad, derivado de carencias sociales y de ingresos, a través de herramientas  para el acceso a una vida digna.","Colonias y/o localidades intervenidas,  para la mejorar  la calidad de vida de la población vulnerable que ahí habitan. ","Refleja la cantidad de personas en situacion de vulnerabilidad que son beneficiadas con los apoyos con los que cuenta la dependencia.","Eficacia ","Estratégico","(Colonias y/o localidades que estaban en situación de vulnerabilidad 2025/ Total de colonias y/o localidades en estado de vulnerabilidad    2026) *100",20,0,"Anual ","Porcentaje",1,"Informes mensuales","Los ciudadanos de las distintas colonia en situacion de vulnerabilidad  puedan acceder a los programas gestionados"]
[null,null,"Propósito",null,"Garantizar el acceso  de la población vulnerable, a los programas y apoyos focalizados en este sector dela población.","Porcentaje de ciudadanos en situación vulnerabilidad que son  beneficiados a través de programas y apoyos. ","Indica la totalidad de los ciudadanos que reciben beneficios de los programas conlos que se cuenta","Eficacia ","Estratégico","(Porcentaje de ciudadanos en situación de vulnerabilidad, que son beneficiados/Totalidad de la población en situación de vulnerabilidad)*100",0,30118,"Anual ","Porcentaje ",1,"Informes mensuales","Los ciudadanos en situacion de vulnerabilidad que todos pueden acceder a los programas gestionados"]
[null,null,"Componente 1",null,"Programas Estatales gestionados con éxito, en beneficio de población vulnerable ","Avance en la ejecución de programas identificados ","Indica la cantidad de programas que son gestionados para beneficio de la ciudadania","Eficacia ","Gestión","(Avance en la gestión de programas dirigidos al sector en estado de vulnerabilidad/Programas identificados para su gestión)*100",0,2,"Anual ","Porcentaje ",1,"Informes mensuales","Los programas sociales se gestionan de forma efectiva. ",439813.88799243188,2500,5000]
[null,null,"Actividad 1.1",null,"Gestionar el programa Servicio Médico al Estilo Jalisco ","Población en estado de vulnerabilidad beneficiada con el Programa Servicio Médico al Estilo Jalisco, gracias a las gestiones realizadas ","Indica la totalidad de los ciudadanos beneficiarios del programa Servicio Medico al Estilo Jalisco","Eficiencia","Gestión","(Porcentaje de población beneficiada con el programa Servicio Médico al Estilo Jalisco/Población en estado de vulnerabilidad)*100",0,30118,"Trimestral ","Porcentaje ",1,"Informes mensuales","El programa tenga acceso a todos los ciudadanos que lo soliciten en situacion vulnerable."]
[null,null,"Actividad 1.2",null,"Gestionar programa de Despensa a Bajo Costo ","Población en estado de vulnerabilidad que se ve beneficiada gracias al otorgamiento de despensas a bajo costo ","Indica la totalidad de los ciudadanos beneficiarios del programa Despensas a bajo costo.","Eficiencia","Gestión","(Porcentaje de población beneficiada con el otorgamiento de despensas a bajo costo/Población en estado de vulnerabilidad)*100",0,30118,"Trimestral ","Porcentaje ",1,"Informes mensuales","El programa tenga acceso a todos los ciudadanos que lo soliciten en situacion vulnerable."]

{"sheet":"SinMatriz","index":3,"n_rows":40,"n_cols":52,"rows_kept":40,"cut":false,"hidden":false,"merged":[[2,1,2,14]]}
[]
[]
["Nombre ente fiscalizable"]
[]
["No. ",null,"Denominación del programa","Objetivo","Nombre del indicador","Definición del indicador","Dimensión","Tipo de Indicador","Método de cálculo","Valor programado 1 (Numerador)","Valor programado 2 (Denominador)","Frecuencia de medición del indicador","Unidad de medida del indicador","Meta","Unidad responsable OPD","Alineación con objetivos superiores del PND","Alineación con objetivos secundarios del PND","Alineación con objetivos superiores del PED","Alineación con objetivos secundarios del PED","Alineación con objetivos superiores del PMD","Alineación con objetivos secundarios del PMD","Capítulo 1000","Capítulo 2000","Capítulo 3000","Capítulo 4000","Capítulo 5000","Capítulo 6000","Capítulo 7000","Capítulo 8000","Capítulo 9000","Avance 1er Semestre del Valor programado 1 (Numerador)","Avance 1er Semestre del Valor programado 2 (Denominador)","Avance Anual del Valor programado 1 (Numerador)","Avance Anual del Valor programado 2 (Denominador)","Avance 1er Semestre del Capítulo 1000","Avance 1er Semestre del Capítulo 2000","Avance 1er Semestre del Capítulo 3000","Avance 1er Semestre del Capítulo 4000","Avance 1er Semestre del Capítulo 5000","Avance 1er Semestre del Capítulo 6000","Avance 1er Semestre del Capítulo 7000","Avance 1er Semestre del Capítulo 8000","Avance 1er Semestre del Capítulo 9000","Avance Anual del Capítulo 1000","Avance Anual del Capítulo 2000","Avance Anual del Capítulo 3000","Avance Anual del Capítulo 4000","Avance Anual del Capítulo 5000","Avance Anual del Capítulo 6000","Avance Anual del Capítulo 7000","Avance Anual del Capítulo 8000","Avance Anual del Capítulo 9000"]
[]
[]
[]
[]
[]
[]
[]
[]
[]
[]
[]
[]
[]
[]
[]
[]
[]
[]
[]
[]
[null,{"$f":"$B$3","v":0}]
[null,0]
[null,0]
[null,0]
[null,0]
[null,0]
[null,0]
[null,0]
[null,0]
[null,0]
[null,0]
[null,0]
[null,0]
[null,0]
[null,0]

{"sheet":"Avances","index":4,"n_rows":99,"n_cols":21,"rows_kept":99,"cut":false,"hidden":false,"merged":[[7,21,8,21],[1,21,3,21],[10,10,10,20],[5,1,5,2],[6,1,6,2],[7,1,7,2],[10,3,10,9],[8,1,8,2]]}
[null,null,1]
[null,null,1]
[null,null,"REPORTE DE AVANCES PARA MATRIZ DE INDICADORES PARA RESULTADOS POR PROGRAMA "]
[null,null,1,null,"A V A N C E      S E M E S T R A L"]
[null,null,1]
[null,"Nombre del ente fiscalizable"]
[null,"Denominación del Programa"]
[null,"Unidad Responsable/OPD"]
[null,"Periodo que se reporta",null,"SEMESTRAL"]
[null,null,1]
[null,null,1,"I N D I C A D O R E S",null,null,null,null,null,null,"A V A N C E S"]
[null,null,"Nivel","Resumen Narrativo","Nombre del indicador","Método de cálculo","Valor programado 1 (Numerador)","Valor programado 2 (Denominador)","Frecuencia de medición","Meta","Avance del valor programado 1 (numerador)","Avance del valor programado 2 (denominador)","Avance del Capítulo 1000","Avance del Capítulo 2000","Avance del Capítulo 3000","Avance del Capítulo 4000","Avance del Capítulo 5000","Avance del Capítulo 6000","Avance del Capítulo 7000","Avance del Capítulo 8000","Avance del Capítulo 9000"]
[{"$f":"$D$6","v":0},{"$f":"$D$7","v":0}]
[{"$f":"$D$6","v":0},{"$f":"$D$7","v":0}]
[0,0]
[0,0]
[0,0]
[0,0]
[0,0]
[0,0]
[0,0]
[0,0]
[0,0]
[0,0]
[0,0]
[0,0]
[0,0]
[0,0]
[0,0]
[0,0]
[0,0]
[0,0]
[0,0]
[0,0]
[0,0]
[0,0]
[0,0]
[0,0]
[0,0]
[0,0]
[0,0]
[0,0]
[0,0]
[0,0]
[0,0]
[0,0]
[0,0]
[0,0]
[0,0]
[0,0]
[0,0]
[0,0]
[0,0]
[0,0]
[0,0]
[0,0]
[0,0]
[0,0]
[0,0]
[0,0]
[0,0]
[0,0]
[0,0]
[0,0]
[0,0]
[0,0]
[0,0]
[0,0]
[0,0]
[0,0]
[0,0]
[0,0]
[0,0]
[0,0]
[0,0]
[0,0]
[0,0]
[{"$f":"$D$6","v":0},{"$f":"$D$7","v":0}]
[0,0]
[0,0]
[0,0]
[0,0]
[0,0]
[0,0]
[0,0]
[0,0]
[0,0]
[0,0]
[0,0]
[0,0]
[0,0]
[0,0]
[0,0]
[0,0]
[0,0]
[0,0]
[0,0]
[0,0]
[0,0]

{"sheet":"AvancesAnual","index":5,"n_rows":99,"n_cols":21,"rows_kept":99,"cut":false,"hidden":false,"merged":[[10,3,10,9],[10,10,10,20],[1,21,3,21],[5,1,5,2],[6,1,6,2],[7,1,7,2],[7,21,8,21],[8,1,8,2]]}
[null,null,1]
[null,null,1]
[null,null,"REPORTE DE AVANCES PARA MATRIZ DE INDICADORES PARA RESULTADOS POR PROGRAMA "]
[null,null,1,null,"A V A N C E      A N U A L"]
[null,null,1]
[null,"Nombre del ente fiscalizable"]
[null,"Denominación del Programa"]
[null,"Unidad Responsable/OPD"]
[null,"Periodo que se reporta",null,"ANUAL"]
[null,null,1]
[null,null,1,"I N D I C A D O R E S",null,null,null,null,null,null,"A V A N C E S"]
[null,null,"Nivel","Resumen Narrativo","Nombre del indicador","Método de cálculo","Valor programado 1 (Numerador)","Valor programado 2 (Denominador)","Frecuencia de medición","Meta","Avance del valor programado 1 (numerador)","Avance del valor programado 2 (denominador)","Avance del Capítulo 1000","Avance del Capítulo 2000","Avance del Capítulo 3000","Avance del Capítulo 4000","Avance del Capítulo 5000","Avance del Capítulo 6000","Avance del Capítulo 7000","Avance del Capítulo 8000","Avance del Capítulo 9000"]
[{"$f":"$D$6","v":0},{"$f":"$D$7","v":0}]
[{"$f":"$D$6","v":0},{"$f":"$D$7","v":0}]
[0,0]
[0,0]
[0,0]
[0,0]
[0,0]
[0,0]
[0,0]
[0,0]
[0,0]
[0,0]
[0,0]
[0,0]
[0,0]
[0,0]
[0,0]
[0,0]
[0,0]
[0,0]
[0,0]
[0,0]
[0,0]
[0,0]
[0,0]
[0,0]
[0,0]
[0,0]
[0,0]
[0,0]
[0,0]
[0,0]
[0,0]
[0,0]
[0,0]
[0,0]
[0,0]
[0,0]
[0,0]
[0,0]
[0,0]
[0,0]
[0,0]
[0,0]
[0,0]
[0,0]
[0,0]
[0,0]
[0,0]
[0,0]
[0,0]
[0,0]
[0,0]
[0,0]
[0,0]
[0,0]
[0,0]
[0,0]
[0,0]
[0,0]
[0,0]
[0,0]
[0,0]
[0,0]
[0,0]
[{"$f":"$D$6","v":0},{"$f":"$D$7","v":0}]
[0,0]
[0,0]
[0,0]
[0,0]
[0,0]
[0,0]
[0,0]
[0,0]
[0,0]
[0,0]
[0,0]
[0,0]
[0,0]
[0,0]
[0,0]
[0,0]
[0,0]
[0,0]
[0,0]
[0,0]
[0,0]

{"sheet":"Base","index":6,"n_rows":1,"n_cols":60,"rows_kept":1,"cut":false,"hidden":false,"merged":[]}
["ID","Ente auditable","Denominación del Programa","Categoría programática","Unidad Responsable","Finalidad","Función","Sub-función","Alineación con objetivos superiores del PND","Alineación con objetivos secundarios del PND","Alineación con objetivos superiores del PED","Alineación con objetivos secundarios del PED","Alineación con objetivos superiores del PMD","Alineación con objetivos secundarios del PMD","Nivel MIR","Código del nivel MIR","Resumen Narrativo (objetivos)","Nombre del indicador","Definición del indicador","Dimensión del indicador","Tipo de indicador","Método de Cálculo del indicador","Valor programado 1 (Numerador)","Valor programado 2 (Denominador)","Frecuencia de Medición del indicador","Unidad de Medida del indicador","Metas del indicador","Medios de Verificación del indicador","Supuestos del indicador","Capítulo 1000","Capítulo 2000","Capítulo 3000","Capítulo 4000","Capítulo 5000","Capítulo 6000","Capítulo 7000","Capítulo 8000","Capítulo 9000","Avance 1er Semestre del Valor programado 1 (Numerador)","Avance 1er Semestre del Valor programado 2 (Denominador)","Avance Anual del Valor programado 1 (Numerador)","Avance Anual del Valor programado 2 (Denominador)","Avance 1er Semestre del Capítulo 1000","Avance 1er Semestre del Capítulo 2000","Avance 1er Semestre del Capítulo 3000","Avance 1er Semestre del Capítulo 4000","Avance 1er Semestre del Capítulo 5000","Avance 1er Semestre del Capítulo 6000","Avance 1er Semestre del Capítulo 7000","Avance 1er Semestre del Capítulo 8000","Avance 1er Semestre del Capítulo 9000","Avance Anual del Capítulo 1000","Avance Anual del Capítulo 2000","Avance Anual del Capítulo 3000","Avance Anual del Capítulo 4000","Avance Anual del Capítulo 5000","Avance Anual del Capítulo 6000","Avance Anual del Capítulo 7000","Avance Anual del Capítulo 8000","Avance Anual del Capítulo 9000"]

{"sheet":"Listas","index":7,"n_rows":110,"n_cols":8,"rows_kept":110,"cut":false,"hidden":false,"merged":[]}
[]
[null,"Categoría programática","Fin","Función","Sub-función"]
[null,"Subsidios sujetos a reglas de operación","1. Gobierno","1.1. Legislación","1.1.1 Legislación",null,null,"a"]
[null,"Otros subsidios",null,null,"1.1.2 Fiscalización",null,null,"b"]
[null,"Prestación de servicios públicos",null,"1.2. Justicia","1.2.1 Impartición de Justicia",null,null,"c"]
[null,"Provisión de bienes públicos",null,null,"1.2.2 Procuración de Justicia",null,null,"d"]
[null,"Planeación, Seguimiento y Evaluación de políticas Públicas",null,null,"1.2.3 Reclusión y Readaptación Social",null,null,"e"]
[null,"Promoción y fomento",null,null,"1.2.4 Derechos Humanos",null,null,"f"]
[null,"Regulación y Supervisión",null,"1.3.Coordinación_Política_de_Gobierno","1.3.1 Presidencia / Gubernatura",null,null,"g"]
[null,"Específicos",null,null,"1.3.2 Política Interior",null,null,"h"]
[null,"Proyectos de Inversión",null,null,"1.3.3 Preservación y Cuidado del Patrimonio Público",null,null,"i"]
[null,"Apoyo al Proceso Presupuestario y para Mejorar la Eficiencia Institucional",null,null,"1.3.4 Función Pública",null,null,"j"]
[null,"Apoyo a la Función Pública y al Mejoramiento de la Gestión",null,null,"1.3.5 Asuntos Jurídicos",null,null,"k"]
[null,"Operaciones Ajenas",null,null,"1.3.6 Organización de Procesos Electorales",null,null,"l"]
[null,"Obligaciones de Cumplimiento de Resolución Jurisdiccional",null,null,"1.3.7 Población",null,null,"m"]
[null,"Desastres Naturales",null,null,"1.3.8 Territorio",null,null,"n"]
[null,"Pensiones y Jubilaciones.",null,null,"1.3.9 Otros Asuntos de Orden Público y Seguridad Interior",null,null,"o"]
[null,"Aportaciones a la Seguiridad Social",null,"1.4. Relaciones_Exteriores","1.4.1 Relaciones Exteriores",null,null,"p"]
[null,null,null,"1.5. Asuntos_Financieros_y_Hacendarios","1.5.1 Asuntos Financieros",null,null,"q"]
[null,null,null,null,"1.5.2 Asuntos Hacendarios",null,null,"r"]
[null,null,null,"1.7. Asuntos_de_Orden_Público_y_Seguridad_Interior","1.7.1 Policía",null,null,"s"]
[null,null,null,null,"1.7.2 Protección Civil",null,null,"t"]
[null,null,null,null,"1.7.3 Otros Asuntos de Orden Público y Seguridad",null,null,"u"]
[null,null,null,null,"1.7.4 Sistema Nacional de Seguridad Pública",null,null,"v"]
[null,null,null,"1.8. Otros_Servicios_Generales","1.8.1 Servicios Registrales, Administrativos y Patrimoniales",null,null,"w"]
[null,null,null,null,"1.8.2 Servicios Estadísticos",null,null,"x"]
[null,null,null,null,"1.8.3 Servicios de Comunicación y Medios",null,null,"y"]
[null,null,null,null,"1.8.4 Acceso a la Información Pública Gubernamental",null,null,"z"]
[null,null,null,null,"1.8.5 Otros",null,null,1]
[null,null,"2. Desarrollo_Social","Protección_Ambiental","2.1.1 Ordenación de Desechos",null,null,2]
[null,null,null,null,"2.1.2 Administración del Agua",null,null,3]
[null,null,null,null,"2.1.3 Ordenación de Aguas Residuales, Drenaje y Alcantarillado",null,null,4]
[null,null,null,null,"2.1.4 Reducción de la Contaminación",null,null,5]
[null,null,null,null,"2.1.5 Protección de la Diversidad Biológica y del Paisaje",null,null,6]
[null,null,null,null,"2.1.6 Otros de Protección Ambiental",null,null,7]
[null,null,null,"Vivienda_y_Servicios_a_la_Comunidad","2.2.1 Urbanización",null,null,8]
[null,null,null,null,"2.2.2 Desarrollo Comunitario",null,null,9]
[null,null,null,null,"2.2.3 Abastecimiento de Agua",null,null,0]
[null,null,null,null,"2.2.4 Alumbrado Público",null,null,"."]
[null,null,null,null,"2.2.5 Vivienda",null,null,","]
[null,null,null,null,"2.2.6 Servicios Comunales",null,null,"+"]
[null,null,null,null,"2.2.7 Desarrollo Regional",null,null,"-"]
[null,null,null,"Salud","2.3.1 Prestación de Servicios de Salud a la Comunidad",null,null,"="]
[null,null,null,null,"2.3.2 Prestación de Servicios de Salud a la Persona",null,null,"/"]
[null,null,null,null,"2.3.3 Generación de Recursos para la Salud",null,null,"*"]
[null,null,null,null,"2.3.4 Rectoría del Sistema de Salud"]
[null,null,null,null,"2.3.5 Protección Social en Salud"]
[null,null,null,"Recreación_Cultura_y_Otras_Manifestaciones_Sociales","2.4.1 Deporte y Recreación"]
[null,null,null,null,"2.4.2 Cultura"]
[null,null,null,null,"2.4.3 Radio, Televisión y Editoriales"]
[null,null,null,null,"2.4.4 Asuntos Religiosos y Otras Manifestaciones Sociales"]
[null,null,null,"Educación","2.5.1 Educación Básica"]
[null,null,null,null,"2.5.2 Educación Media Superior"]
[null,null,null,null,"2.5.3 Educación Superior"]
[null,null,null,null,"2.5.4 Posgrado"]
[null,null,null,null,"2.5.5 Educación para Adultos"]
[null,null,null,null,"2.5.6 Otros Servicios Educativos y Actividades Inherentes"]
[null,null,null,"Protección_Social","2.6.1 Enfermedad e Incapacidad"]
[null,null,null,null,"2.6.2 Edad Avanzada"]
[null,null,null,null,"2.6.3 Familia e Hijos"]
[null,null,null,null,"2.6.4 Desempleo"]
[null,null,null,null,"2.6.5 Alimentación y Nutrición"]
[null,null,null,null,"2.6.6 Apoyo Social para la Vivienda"]
[null,null,null,null,"2.6.7 Indígenas"]
[null,null,null,null,"2.6.8 Otros Grupos Vulnerables"]
[null,null,null,null,"2.6.9 Otros de Seguridad Social y Asistencia Social"]
[null,null,null,"Otros_Asuntos_Sociales","2.7.1 Otros Asuntos Sociales"]
[null,null,"3. Desarrollo_Económico","Asuntos_Económicos_Comerciales_y_Laborales_Generales","3.1.1 Asuntos Económicos y Comerciales en General"]
[null,null,null,null,"3.1.2 Asuntos Laborales Generales"]
[null,null,null,"Agropecuaria_Silvicultura_Pesca_y_Caza","3.2.1 Agropecuaria"]
[null,null,null,null,"3.2.2 Silvicultura"]
[null,null,null,null,"3.2.3 Acuacultura, Pesca y Caza"]
[null,null,null,null,"3.2.4 Agroindustrial"]
[null,null,null,null,"3.2.5 Hidroagrícola"]
[null,null,null,null,"3.2.6 Apoyo Financiero a la Banca y Seguro Agropecuario"]
[null,null,null,"Combustibles_y_Energía","3.3.1 Carbón y Otros Combustibles Minerales Sólidos"]
[null,null,null,null,"3.3.2 Petróleo y Gas Natural (Hidrocarburos)"]
[null,null,null,null,"3.3.3 Combustibles Nucleares"]
[null,null,null,null,"3.3.4 Otros Combustibles"]
[null,null,null,null,"3.3.5 Electricidad"]
[null,null,null,null,"3.3.6 Energía no Eléctrica"]
[null,null,null,"Minería_Manufacturas_y_Construcción","3.4.1 Extracción de Recursos Minerales excepto los Combustibles Minerales"]
[null,null,null,null,"3.4.2 Manufacturas"]
[null,null,null,null,"3.4.3 Construcción"]
[null,null,null,"Transporte","3.5.1 Transporte por Carretera"]
[null,null,null,null,"3.5.2 Transporte por Agua y Puertos"]
[null,null,null,null,"3.5.3 Transporte por Ferrocarril"]
[null,null,null,null,"3.5.4 Transporte Aéreo"]
[null,null,null,null,"3.5.5 Transporte por Oleoductos y Gasoductos y Otros Sistemas de Transporte"]
[null,null,null,null,"3.5.6 Otros Relacionados con Transporte"]
[null,null,null,"Comunicaciones","3.6.1 Comunicaciones"]
[null,null,null,"Turismo","3.7.1 Turismo"]
[null,null,null,null,"3.7.2 Hoteles y Restaurantes"]
[null,null,null,"Ciencia_Tecnología_e_Innovación","3.8.1 Investigación Científica"]
[null,null,null,null,"3.8.2 Desarrollo Tecnológico"]
[null,null,null,null,"3.8.3 Servicios Científicos y Tecnológicos"]
[null,null,null,null,"3.8.4 Innovación"]
[null,null,null,"Otras_Industrias_y_Otros_Asuntos_Económicos","3.9.1 Comercio, Distribución, Almacenamiento y Depósito"]
[null,null,null,null,"3.9.2 Otras Industrias"]
[null,null,null,null,"3.9.3 Otros Asuntos Económicos"]
[null,null,"4. Otros","Transacciones_de_la_Deuda_Financiera_y_Costo_Financiero_Deuda","4.1.1 Deuda Pública Interna"]
[null,null,null,null,"4.1.2 Deuda Pública Externa"]
[null,null,null,"Transferencias_Participaciones_y_Aportaciones","4.2.1 Transferencias entre Diferentes Niveles y Ordenes de Gobierno"]
[null,null,null,null,"4.2.2 Participaciones entre Diferentes Niveles y Ordenes de Gobierno"]
[null,null,null,null,"4.2.3 Aportaciones entre Diferentes Niveles y Ordenes de Gobierno"]
[null,null,null,"Saneamiento_del_Sistema_Financiero","4.3.1 Saneamiento del Sistema Financiero"]
[null,null,null,null,"4.3.2 Apoyos IPAB"]
[null,null,null,null,"4.3.3 Banca de Desarrollo"]
[null,null,null,null,"4.3.4 Apoyo a los programas de reestructura en unidades de inversión (UDIS)"]
[null,null,null,"Adeudos_Anteriores","4.4.1 Adeudos de Ejercicios Fiscales Anteriores"]